fUSD/lending_fUSD_20241202
["ID","MTS","AMOUNT","RATE_DAILY","PERIOD"]
[343989887,1733169905592,-500.0,0.00027191,120]
[343989888,1733169905639,-507.65,0.00027191,120]
[343989889,1733169905697,-794.35,0.00027191,120]
[343989890,1733169905748,-1741.18,0.00027191,120]
[343989891,1733169905805,-500.0,0.00027191,120]
[343989892,1733169905857,-951.11,0.00027191,120]
[343989893,1733169905905,-516.58685931,0.00027191,120]
[343989894,1733169905953,-500.71,0.00027191,120]
[343989895,1733169906000,-500.0,0.00027191,120]
[343989896,1733169906047,-500.0,0.00027191,120]
[343989897,1733169906093,-1896.23,0.00027191,120]
[343989898,1733169906137,-500.0,0.00027191,120]
[343989899,1733169906185,-500.0,0.00027191,120]
[343989900,1733169906239,-500.0,0.00027191,120]
[343989901,1733169906286,-895.29,0.00027191,120]
[343989902,1733169906333,-715.32,0.00027191,120]
[343989903,1733169906377,-500.0,0.00027191,120]
[343989904,1733169906422,-500.0,0.00027191,120]
[343989905,1733169906468,-519.42937626,0.00027191,120]
[343989906,1733169906513,-500.0,0.00027191,120]
[343989907,1733169906557,-1200.26,0.00027191,120]
[343989908,1733169906603,-500.0,0.00027191,120]
[343989909,1733169906649,-500.0,0.00027191,120]
[343989910,1733169906699,-1362.16,0.00027191,120]
[343989911,1733169906744,-500.0,0.00027191,120]
[343989912,1733169906796,-500.0,0.00027191,120]
[343989913,1733169906845,-618.4,0.00027191,120]
[343989914,1733169907213,-748.23,0.00027191,120]
[343989915,1733169907269,-500.0,0.00027191,120]
[343989916,1733169907314,-500.0,0.00027191,120]
[343989917,1733169907359,-793.36,0.00027191,120]
[343989918,1733169907404,-1512.73,0.00027191,120]
[343989919,1733169907450,-908.58,0.00027191,120]
[343989920,1733169907496,-3180.24,0.00027191,120]
[343989921,1733169907543,-500.0,0.00027191,120]
[343989922,1733169907590,-1267.07,0.00027191,120]
[343989923,1733169907638,-641.83,0.00027191,120]
[343989924,1733169907690,-2544.61,0.00027191,120]
[343989925,1733169907737,-500.0,0.00027191,120]
[343989926,1733169907784,-500.0,0.00027191,120]
[343989927,1733169907829,-500.0,0.00027191,120]
[343989928,1733169907875,-500.0,0.00027191,120]
[343989929,1733169907919,-500.0,0.00027191,120]
[343989930,1733169907963,-1187.33,0.00027191,120]
[343989931,1733169908009,-3437.65,0.00027191,120]
[343989932,1733169908054,-500.0,0.00027191,120]
[343989933,1733169908098,-835.54,0.00027191,120]
[343989934,1733169908145,-500.0,0.00027191,120]
[343989935,1733169908193,-700.0,0.00027191,120]
[343989936,1733169908242,-500.0,0.00027191,120]
[343989937,1733169908289,-1643.01,0.00027191,120]
[343989938,1733169908340,-500.0,0.00027191,120]
[343989939,1733169908391,-500.0,0.00027191,120]
[343989940,1733169908441,-500.0,0.00027191,120]
[343989941,1733169908491,-948.79,0.00027191,120]
[343989942,1733169908541,-581.49,0.00027191,120]
[343989943,1733169908591,-3325.5,0.00027191,120]
[343989944,1733169908640,-503.19,0.00027191,120]
[343989945,1733169908689,-1663.95,0.00027191,120]
[343989946,1733169908738,-1118.58,0.00027191,120]
[343989947,1733169908787,-745.04,0.00027191,120]
[343989948,1733169908834,-500.0,0.00027191,120]
[343989949,1733169908894,-500.0,0.00027191,120]
[343989950,1733169908942,-1284.07,0.00027191,120]
[343989951,1733169908991,-890.64,0.00027191,120]
[343989952,1733169909038,-917.02,0.00027191,120]
[343989953,1733169909084,-500.0,0.00027191,120]
[343989954,1733169909131,-580.95,0.00027191,120]
[343989955,1733169909179,-6207.23,0.00027191,120]
[343989956,1733169909231,-500.0,0.00027191,120]
[343989957,1733169909280,-1114.51,0.00027191,60]
[343989958,1733169909331,-2448.92,0.00027191,120]
[343989959,1733169909380,-500.0,0.00027191,120]
[343989960,1733169909428,-1950.33,0.00027191,120]
[343989961,1733169909477,-3054.87,0.00027191,120]
[343989962,1733169909530,-870.88,0.00027191,120]
[343989963,1733169909580,-2228.68,0.00027191,120]
[343989964,1733169909627,-328.34,0.00027191,120]
[343989965,1733169909678,-923.08,0.00027191,120]
[343989966,1733169909729,-500.0,0.00027191,120]
[343989967,1733169909778,-544.54,0.00027191,120]
[343989968,1733169909824,-500.0,0.00027191,120]
[343989969,1733169909871,-500.0,0.00027191,120]
[343989970,1733169909916,-1092.9,0.00027191,120]
[343989971,1733169909960,-571.61,0.00027191,120]
[343989972,1733169910005,-500.0,0.00027191,120]
[343989973,1733169910049,-811.66,0.00027191,120]
[343989974,1733169910092,-2196.28,0.00027191,120]
[343989975,1733169910135,-500.0,0.00027191,120]
[343989976,1733169910178,-500.0,0.00027191,120]
[343989977,1733169910221,-684.17,0.00027191,120]
[343989978,1733169910267,-2668.13,0.00027191,120]
[343989979,1733169910311,-663.27,0.00027191,120]
[343989980,1733169910355,-500.0,0.00027191,120]
[343989981,1733169910398,-535.28,0.00027191,120]
[343989982,1733169910442,-500.0,0.00027191,120]
[343989983,1733169910487,-895.09,0.00027191,120]
[343989984,1733169910531,-500.0,0.00027191,120]
[343989985,1733169910575,-1975.86,0.00027191,120]
[343989986,1733169910618,-500.0,0.00027191,120]
[343989987,1733169910664,-500.0,0.00027191,120]
[343989988,1733169910711,-978.51,0.00027191,120]
[343989989,1733169910755,-1404.4,0.00027191,120]
[343989990,1733169910799,-3927.33,0.00027191,120]
[343989991,1733169910843,-4766.8,0.00027191,120]
[343989992,1733169910887,-500.0,0.00027191,120]
[343989993,1733169910930,-1607.08,0.00027191,120]
[343989994,1733169910974,-500.0,0.00027191,120]
[343989995,1733169911022,-841.46,0.00027191,120]
[343989996,1733169911066,-2073.17,0.00027191,120]
[343989997,1733169911111,-2877.76,0.00027191,120]
[343989998,1733169911155,-1140.61,0.00027191,120]
[343989999,1733169911201,-682.14,0.00027191,120]
[343990000,1733169911246,-729.35,0.00027191,120]
[343990001,1733169911289,-500.0,0.00027191,120]
[343990002,1733169911332,-522.94,0.00027191,120]
[343990003,1733169911376,-500.0,0.00027191,120]
[343990004,1733169911423,-823.11,0.00027191,120]
[343990005,1733169911467,-2298.11,0.00027191,120]
[343990006,1733169911514,-3498.94,0.00027191,120]
[343990007,1733169911560,-1433.32,0.00027191,120]
[343990008,1733169911906,-500.0,0.00027191,120]
[343990009,1733169911949,-500.0,0.00027191,120]
[343990010,1733169911994,-1432.32,0.00027191,120]
[343990011,1733169912039,-1134.59,0.00027191,120]
[343990012,1733169912081,-718.76,0.00027191,120]
[343990013,1733169912124,-1883.27,0.00027191,120]
[343990014,1733169912165,-500.0,0.00027191,120]
[343990015,1733169912209,-2924.44,0.00027191,120]
[343990016,1733169912254,-2057.6,0.00027191,120]
[343990017,1733169912298,-500.0,0.00027191,120]
[343990018,1733169912346,-500.0,0.00027191,120]
[343990019,1733169912394,-7028.86,0.00027191,120]
[343990020,1733169912442,-1803.13,0.00027191,120]
[343990021,1733169912492,-500.0,0.00027191,120]
[343990022,1733169912541,-3102.05,0.00027191,120]
[343990023,1733169912588,-500.0,0.00027191,120]
[343990024,1733169912633,-1541.69,0.00027191,120]
[343990025,1733169912678,-903.21,0.00027191,120]
[343990026,1733169912725,-500.0,0.00027191,120]
[343990027,1733169912775,-500.0,0.00027191,120]
[343990028,1733169912822,-1049.47,0.00027191,120]
[343990029,1733169912867,-500.0,0.00027191,120]
[343990030,1733169912912,-806.28,0.00027191,120]
[343990031,1733169912956,-1062.78,0.00027191,120]
[343990032,1733169912999,-500.0,0.00027191,120]
[343990033,1733169913042,-500.0,0.00027191,120]
[343990034,1733169913087,-529.81,0.00027191,120]
[343990035,1733169913139,-1613.46,0.00027191,120]
[343990036,1733169913189,-5322.29,0.00027191,120]
[343990037,1733169913243,-663.6,0.00027191,120]
[343990038,1733169913291,-880.7,0.00027191,120]
[343990039,1733169913336,-226.3764531,0.00027191,120]
[343990040,1733169913382,-456.6992924,0.00027191,120]
[343990041,1733169913428,-500.0,0.00027191,120]
[343990042,1733169913476,-500.0,0.00027191,120]
[343990043,1733169913530,-683.6,0.00027191,120]
[343990044,1733169913579,-2061.14,0.00027191,30]
[343990045,1733169913629,-500.0,0.00027191,120]
[343990046,1733169913678,-1353.46,0.00027191,120]
[343990047,1733169913728,-584.0,0.00027191,120]
[343990048,1733169913778,-721.18,0.00027191,120]
[343990049,1733169913822,-500.0,0.00027191,120]
[343990050,1733169913866,-500.0,0.00027191,120]
[343990051,1733169913909,-500.0,0.00027191,120]
[343990052,1733169913952,-1668.31,0.00027191,120]
[343990053,1733169914000,-500.0,0.00027191,120]
[343990054,1733169914047,-500.0,0.00027191,120]
[343990055,1733169914099,-500.0,0.00027191,120]
[343990056,1733169914148,-500.0,0.00027191,120]
[343990057,1733169914194,-559.05,0.00027191,120]
[343990058,1733169914244,-907.5,0.00027191,120]
[343990059,1733169914291,-658.13,0.00027191,120]
[343990060,1733169914336,-500.0,0.00027191,120]
[343990061,1733169914380,-518.27,0.00027191,120]
[343990062,1733169914425,-2812.6,0.00027191,120]
[343990063,1733169914471,-500.0,0.00027191,120]
[343990064,1733169914523,-1551.24,0.00027191,120]
[343990065,1733169914569,-622.04,0.00027191,120]
[343990066,1733169914615,-500.0,0.00027191,120]
[343990067,1733169914662,-1134.58,0.00027191,120]
[343990068,1733169914708,-500.0,0.00027191,120]
[343990069,1733169914752,-723.17,0.00027191,120]
[343990070,1733169914796,-500.0,0.00027191,120]
[343990071,1733169914840,-1392.8,0.00027191,120]
[343990072,1733169914884,-703.37,0.00027191,120]
[343990073,1733169914928,-500.0,0.00027191,120]
[343990074,1733169914970,-500.0,0.00027191,120]
[343990075,1733169915012,-1785.16,0.00027191,120]
[343990076,1733169915055,-672.83,0.00027191,120]
[343990077,1733169915100,-500.0,0.00027191,120]
[343990078,1733169915142,-2072.12,0.00027191,120]
[343990079,1733169915184,-2151.79,0.00027191,120]
[343990080,1733169915228,-671.1,0.00027191,120]
[343990081,1733169915272,-1217.44,0.00027191,60]
[343990082,1733169915315,-2095.96,0.00027191,120]
[343990083,1733169915356,-500.0,0.00027191,120]
[343990084,1733169915398,-500.0,0.00027191,120]
[343990085,1733169915440,-2399.96,0.00027191,120]
[343990086,1733169915483,-1205.02,0.00027191,120]
[343990087,1733169915529,-731.09,0.00027191,120]
[343990088,1733169915572,-517.92,0.00027191,120]
[343990089,1733169915617,-957.59,0.00027191,120]
[343990090,1733169915662,-500.0,0.00027191,120]
[343990091,1733169915708,-500.0,0.00027191,120]
[343990092,1733169915752,-964.02,0.00027191,120]
[343990093,1733169915795,-1155.0,0.00027191,120]
[343990094,1733169915837,-500.0,0.00027191,120]
[343990095,1733169915879,-1599.85,0.00027191,120]
[343990096,1733169915921,-3145.91,0.00027191,120]
[343990097,1733169915964,-500.0,0.00027191,120]
[343990098,1733169916005,-500.0,0.00027191,120]
[343990099,1733169916047,-500.0,0.00027191,120]
[343990100,1733169916088,-3095.03,0.00027191,120]
[343990101,1733169916131,-966.75,0.00027191,120]
[343990102,1733169916439,-1566.82,0.00027191,120]
[343990103,1733169916488,-3532.86,0.00027191,120]
[343990104,1733169916536,-2087.33,0.00027191,120]
[343990105,1733169916584,-4394.15,0.00027191,120]
[343990106,1733169916632,-1858.53,0.00027191,120]
[343990107,1733169916683,-1050.27,0.00027191,120]
[343990108,1733169916731,-1419.7,0.00027191,120]
[343990109,1733169916782,-704.36,0.00027191,120]
[343990110,1733169916832,-500.0,0.00027191,120]
[343990111,1733169916882,-1155.5,0.00027191,120]
[343990112,1733169916931,-2485.86,0.00027191,120]
[343990113,1733169916977,-3307.46,0.00027191,120]
[343990114,1733169917031,-500.0,0.00027191,120]
[343990115,1733169917076,-619.4,0.00027191,120]
[343990116,1733169917122,-2954.23,0.00027191,120]
[343990117,1733169917166,-500.0,0.00027191,120]
[343990118,1733169917211,-1622.42,0.00027191,120]
[343990119,1733169917256,-1433.94,0.00027191,120]
[343990120,1733169917303,-1486.96,0.00027191,120]
[343990121,1733169917349,-500.0,0.00027191,120]
[343990122,1733169917396,-5702.56,0.00027191,120]
[343990123,1733169917443,-553.01,0.00027191,120]
[343990124,1733169917496,-617.67,0.00027191,120]
[343990125,1733169917544,-4667.69,0.00027191,120]
[343990126,1733169917590,-909.9,0.00027191,120]
[343990127,1733169917636,-2769.56,0.00027191,120]
[343990128,1733169917688,-1527.45,0.00027191,120]
[343990129,1733169917733,-500.0,0.00027191,120]
[343990130,1733169917781,-2607.43,0.00027191,120]
[343990131,1733169917828,-1429.2,0.00027191,120]
[343990132,1733169917873,-500.0,0.00027191,120]
[343990133,1733169917917,-500.0,0.00027191,120]
[343990134,1733169917962,-500.0,0.00027191,120]
[343990135,1733169918007,-1181.82,0.00027191,120]
[343990136,1733169918054,-1289.36,0.00027191,120]
[343990137,1733169918102,-2609.47,0.00027191,120]
[343990138,1733169918148,-847.91,0.00027191,120]
[343990139,1733169918195,-500.0,0.00027191,120]
[343990140,1733169918243,-1577.07,0.00027191,120]
[343990141,1733169918289,-500.0,0.00027191,120]
[343990142,1733169918338,-1229.5,0.00027191,120]
[343990143,1733169918386,-1146.75,0.00027191,120]
[343990144,1733169918435,-870.78,0.00027191,120]
[343990145,1733169918484,-2309.42,0.00027191,120]
[343990146,1733169918535,-500.0,0.00027191,120]
[343990147,1733169918583,-6116.17,0.00027191,120]
[343990148,1733169918631,-5287.35,0.00027191,120]
[343990149,1733169918682,-793.22,0.00027191,120]
[343990150,1733169918730,-500.0,0.00027191,120]
[343990151,1733169918782,-500.0,0.00027191,120]
[343990152,1733169918829,-1023.67,0.00027191,120]
[343990153,1733169918875,-2550.03,0.00027191,120]
[343990154,1733169918922,-1153.56,0.00027191,120]
[343990155,1733169918969,-500.0,0.00027191,120]
[343990156,1733169919015,-2762.05,0.00027191,120]
[343990157,1733169919061,-500.0,0.00027191,120]
[343990158,1733169919105,-514.18,0.00027191,120]
[343990159,1733169919150,-500.0,0.00027191,120]
[343990160,1733169919195,-3535.47,0.00027191,120]
[343990161,1733169919243,-500.0,0.00027191,120]
[343990162,1733169919289,-1417.54,0.00027191,120]
[343990163,1733169919336,-549.1,0.00027191,120]
[343990164,1733169919380,-4776.42,0.00027191,120]
[343990165,1733169919425,-542.54505431,0.00027191,120]
[343990166,1733169919470,-795.36,0.00027191,120]
[343990167,1733169919516,-890.83,0.00027191,120]
[343990168,1733169919563,-500.0,0.00027191,120]
[343990169,1733169919609,-2411.07,0.00027191,120]
[343990170,1733169919657,-5621.83,0.00027191,120]
[343990171,1733169919702,-991.41,0.00027191,120]
[343990172,1733169919748,-1874.45,0.00027191,120]
[343990173,1733169919795,-1305.92,0.00027191,120]
[343990174,1733169919839,-931.33,0.00027191,120]
[343990175,1733169919883,-1065.56,0.00027191,120]
[343990176,1733169919928,-500.0,0.00027191,120]
[343990177,1733169919978,-554.43077938,0.00027191,120]
[343990178,1733169920025,-1775.35,0.00027191,120]
[343990179,1733169920068,-679.68,0.00027191,120]
[343990180,1733169920111,-500.0,0.00027191,120]
[343990181,1733169920155,-500.0,0.00027191,120]
[343990182,1733169920198,-500.0,0.00027191,120]
[343990183,1733169920241,-526.93,0.00027191,120]
[343990184,1733169920283,-2317.22,0.00027191,120]
[343990185,1733169920326,-500.0,0.00027191,120]
[343990186,1733169920368,-500.0,0.00027191,120]
[343990187,1733169920410,-500.0,0.00027191,120]
[343990188,1733169920452,-800.64,0.00027191,120]
[343990189,1733169920497,-1036.58,0.00027191,120]
[343990190,1733169920540,-633.81,0.00027191,120]
[343990191,1733169920589,-2205.66,0.00027191,120]
[343990192,1733169920634,-1047.46,0.00027191,120]
[343990193,1733169920682,-5481.99,0.00027191,30]
[343990194,1733169920727,-758.69,0.00027191,120]
[343990195,1733169920774,-1427.38,0.00027191,120]
[343990196,1733169921047,-500.0,0.00027191,120]
[343990197,1733169921100,-509.61547971,0.00027191,120]
[343990198,1733169921143,-514.92,0.00027191,120]
[343990199,1733169921186,-500.0,0.00027191,120]
[343990200,1733169921229,-641.63,0.00027191,120]
[343990201,1733169921274,-500.0,0.00027191,120]
[343990202,1733169921317,-1447.48,0.00027191,120]
[343990203,1733169921362,-4272.24,0.00027191,120]
[343990204,1733169921405,-560.78,0.00027191,120]
[343990205,1733169921452,-736.23,0.00027191,120]
[343990206,1733169921502,-667.49,0.00027191,120]
[343990207,1733169921550,-844.39,0.00027191,120]
[343990208,1733169921599,-2263.66,0.00027191,120]
[343990209,1733169921644,-3364.95,0.00027191,120]
[343990210,1733169921693,-500.0,0.00027191,120]
[343990211,1733169921747,-2452.77,0.00027191,120]
[343990212,1733169921799,-563.29,0.00027191,120]
[343990213,1733169921849,-500.0,0.00027191,120]
[343990214,1733169921897,-1715.81,0.00027191,120]
[343990215,1733169921942,-500.0,0.00027191,120]
[343990216,1733169921986,-539.85,0.00027191,120]
[343990217,1733169922038,-1059.98,0.00027191,120]
[343990218,1733169922083,-2422.49,0.00027191,120]
[343990219,1733169922129,-500.0,0.00027191,120]
[343990220,1733169922173,-1790.06,0.00027191,120]
[343990221,1733169922217,-500.0,0.00027191,120]
[343990222,1733169922262,-1103.76,0.00027191,120]
[343990223,1733169922310,-1000.34,0.00027191,120]
[343990224,1733169922358,-1289.89,0.00027191,120]
[343990225,1733169922405,-500.0,0.00027191,120]
[343990226,1733169922453,-2192.16,0.00027191,120]
[343990227,1733169922503,-1228.74,0.00027191,120]
[343990228,1733169922554,-957.9,0.00027191,120]
[343990229,1733169922603,-780.49,0.00027191,120]
[343990230,1733169922653,-2513.91,0.00027191,120]
[343990231,1733169922702,-500.0,0.00027191,120]
[343990232,1733169922749,-1177.37,0.00027191,120]
[343990233,1733169922796,-1711.39,0.00027191,120]
[343990234,1733169922843,-13756.05,0.00027191,120]
[343990235,1733169922889,-1223.82,0.00027191,120]
[343990236,1733169922938,-500.0,0.00027191,120]
[343990237,1733169922986,-19783.26,0.00027191,120]
[343990238,1733169923036,-814.1,0.00027191,120]
[343990239,1733169923082,-1144.32,0.00027191,120]
[343990240,1733169923125,-500.0,0.00027191,120]
[343990241,1733169923168,-566.12,0.00027191,120]
[343990242,1733169923433,-500.0,0.00027191,120]
[343990243,1733169923482,-3463.96,0.00027191,120]
[343990244,1733169923530,-2471.59,0.00027191,120]
[343990245,1733169923576,-4111.41,0.00027191,120]
[343990246,1733169923621,-593.51,0.00027191,120]
[343990247,1733169923667,-2015.47,0.00027191,120]
[343990248,1733169923712,-2902.34,0.00027191,120]
[343990249,1733169923757,-21330.27,0.00027191,120]
[343990250,1733169923801,-898.43,0.00027191,120]
[343990251,1733169923846,-3255.42,0.00027191,120]
[343990252,1733169923891,-500.56,0.00027191,120]
[343990253,1733169923934,-500.0,0.00027191,120]
[343990254,1733169923978,-938.21,0.00027191,120]
[343990255,1733169924025,-500.0,0.00027191,120]
[343990256,1733169924069,-599.12,0.00027191,120]
[343990257,1733169924113,-500.0,0.00027191,120]
[343990258,1733169924158,-3352.32,0.00027191,120]
[343990259,1733169924202,-768.34,0.00027191,120]
[343990260,1733169924250,-775.22,0.00027191,120]
[343990261,1733169924300,-500.0,0.00027191,120]
[343990262,1733169924345,-500.0,0.00027191,120]
[343990263,1733169924390,-944.8,0.00027191,120]
[343990264,1733169924433,-1636.96,0.00027191,120]
[343990265,1733169924477,-1458.9,0.00027191,120]
[343990266,1733169924522,-670.62,0.00027191,120]
[343990267,1733169924568,-923.85,0.00027191,120]
[343990268,1733169924615,-698.71,0.00027191,120]
[343990269,1733169924662,-3466.98,0.00027191,120]
[343990270,1733169924711,-500.0,0.00027191,120]
[343990271,1733169924758,-500.0,0.00027191,120]
[343990272,1733169924802,-1512.19,0.00027191,120]
[343990273,1733169924848,-592.57,0.00027191,120]
[343990274,1733169924892,-6797.27,0.00027191,120]
[343990275,1733169924937,-1560.09,0.00027191,120]
[343990276,1733169924981,-676.63,0.00027191,120]
[343990277,1733169925026,-4584.49,0.00027191,120]
[343990278,1733169925069,-500.0,0.00027191,120]
[343990279,1733169925113,-2820.52,0.00027191,120]
[343990280,1733169925156,-2770.29875787,0.00027191,120]
[343990281,1733169925198,-1361.04,0.00027191,120]
[343990282,1733169925243,-2781.44,0.00027191,120]
[343990283,1733169925286,-1258.23,0.00027191,120]
[343990284,1733169925330,-500.0,0.00027191,120]
[343990285,1733169925375,-500.0,0.00027191,120]
[343990286,1733169925419,-2650.17,0.00027191,120]
[343990287,1733169925463,-3300.64,0.00027191,120]
[343990288,1733169925508,-2017.79,0.00027191,120]
[343990289,1733169925553,-500.0,0.00027191,120]
[343990290,1733169925598,-1286.34,0.00027191,120]
[343990291,1733169925841,-1387.45,0.00027191,120]
[343990292,1733169925886,-3693.67,0.00027191,120]
[343990293,1733169925929,-500.0,0.00027191,120]
[343990294,1733169925974,-3023.16,0.00027191,120]
[343990295,1733169926023,-1193.08,0.00027191,120]
[343990296,1733169926067,-3240.77,0.00027191,120]
[343990297,1733169926111,-2236.02,0.00027191,120]
[343990298,1733169926155,-1679.56,0.00027191,120]
[343990299,1733169926200,-655.53,0.00027191,120]
[343990300,1733169926249,-500.0,0.00027191,120]
[343990301,1733169926296,-1505.75,0.00027191,120]
[343990302,1733169926346,-1614.33,0.00027191,120]
[343990303,1733169926396,-500.0,0.00027191,120]
[343990304,1733169926444,-500.0,0.00027191,120]
[343990305,1733169926491,-2000.0,0.00027196,120]
[343990306,1733169926542,-500.0,0.00027196,120]
[343990307,1733169926591,-150.661864,0.00027257,30]
[343990308,1733169926639,-500.0,0.00027347,120]
[343990309,1733169926688,-1000.0,0.00027397,30]
[343990310,1733169926736,-1000.0,0.00027397,30]
[343990311,1733169926789,-1000.0,0.00027397,30]
[343990312,1733169926834,-1000.0,0.00027397,30]
[343990313,1733169926881,-1000.0,0.00027397,30]
[343990314,1733169926927,-1000.0,0.00027397,30]
[343990315,1733169926971,-1000.0,0.00027397,30]
[343990316,1733169927023,-1000.0,0.00027397,30]
[343990317,1733169927073,-1000.0,0.00027397,30]
[343990318,1733169927122,-1000.0,0.00027397,30]
[343990319,1733169927169,-1000.0,0.00027397,30]
[343990320,1733169927216,-1000.0,0.00027397,30]
[343990321,1733169927262,-1000.0,0.00027397,30]
[343990322,1733169927311,-1134.22,0.00027397,120]
[343990323,1733169927357,-1134.22,0.00027397,120]
[343990324,1733169927403,-1134.22,0.00027397,120]
[343990325,1733169927450,-1134.22,0.00027397,120]
[343990326,1733169927503,-1134.22,0.00027397,120]
[343990327,1733169927557,-1134.22,0.00027397,120]
[343990328,1733169927611,-1134.22,0.00027397,120]
[343990329,1733169927661,-1134.22,0.00027397,120]
[343990330,1733169927710,-1134.22,0.00027397,120]
[343990331,1733169927765,-200.0,0.00027397,60]
[343990332,1733169927820,-500.0,0.00027465,120]
[343990333,1733169927872,-500.0,0.00027465,120]
[343990334,1733169927924,-500.0,0.00027465,120]
[343990335,1733169927980,-500.0,0.00027465,120]
[343990336,1733169928034,-500.0,0.00027465,120]
[343990337,1733169928080,-500.0,0.00027465,120]
[343990338,1733169928125,-557.00184656,0.00027465,120]
[343990339,1733169928170,-500.0,0.00027465,120]
[343990340,1733169928215,-500.0,0.00027465,120]
[343990341,1733169928261,-500.0,0.00027465,120]
[343990342,1733169928308,-500.0,0.00027465,120]
[343990343,1733169928352,-207.69769372,0.00027465,120]
[343990344,1733169928398,-500.0,0.00027465,120]
[343990345,1733169928443,-500.0,0.00027465,120]
[343990346,1733169928490,-500.0,0.00027465,120]
[343990347,1733169928538,-500.0,0.00027465,120]
[343990348,1733169928586,-500.0,0.00027465,120]
[343990349,1733169928634,-458.50196264,0.00027465,120]
[343990350,1733169928680,-500.0,0.00027465,120]
[343990351,1733169928725,-500.0,0.00027465,120]
[343990352,1733169928771,-500.0,0.00027465,120]
[343990353,1733169928814,-500.0,0.00027465,120]
[343990354,1733169928858,-500.0,0.00027465,120]
[343990355,1733169928902,-500.0,0.00027465,120]
[343990356,1733169928946,-500.0,0.00027465,120]
[343990357,1733169928990,-500.0,0.00027465,120]
[343990358,1733169929036,-500.0,0.00027465,120]
[343990359,1733169929080,-500.0,0.00027465,120]
[343990360,1733169929123,-500.0,0.00027465,120]
[343990361,1733169929169,-500.0,0.00027465,120]
[343990362,1733169929215,-972.55,0.00027465,120]
[343990363,1733169929260,-976.93,0.00027465,120]
[343990364,1733169929308,-500.0,0.00027465,120]
[343990365,1733169929353,-320.32479171,0.00027465,120]
[343990366,1733169929398,-830.72,0.00027465,120]
[343990367,1733169929444,-887.04,0.00027465,120]
[343990368,1733169929489,-500.0,0.00027465,120]
[343990369,1733169929537,-500.0,0.00027465,120]
[343990370,1733169929584,-639.95,0.00027465,120]
[343990371,1733169929630,-500.0,0.00027465,120]
[343990372,1733169929675,-2630.4,0.00027465,120]
[343990373,1733169929721,-500.0,0.00027465,120]
[343990374,1733169929768,-1084.35,0.00027465,120]
[343990375,1733169929814,-500.0,0.00027465,120]
[343990376,1733169929857,-500.0,0.00027465,120]
[343990377,1733169929902,-2476.13,0.00027465,120]
[343990378,1733169929945,-500.0,0.00027465,120]
[343990379,1733169929990,-500.0,0.00027465,120]
[343990380,1733169930037,-962.0,0.00027465,120]
[343990381,1733169930082,-500.0,0.00027465,120]
[343990382,1733169930128,-549.56,0.00027465,120]
[343990383,1733169930173,-500.0,0.00027465,120]
[343990384,1733169930216,-735.72,0.00027465,120]
[343990385,1733169930588,-500.0,0.00027465,120]
[343990386,1733169930634,-577.19,0.00027465,120]